fUSD/lending_fUSD_20240429
["ID","MTS","AMOUNT","RATE_DAILY","PERIOD"]
[324848011,1714371085439,-984.03,0.00012328,2]
[324848012,1714371085448,-500.0,0.00012328,2]
[324848013,1714371085458,-593.92,0.00012328,2]
[324848014,1714371085468,-621.88835066,0.00012328,2]
[324848015,1714371085477,-443.47,0.00012328,2]
[324848016,1714371085487,-500.0,0.00012328,2]
[324848017,1714371085497,-500.0,0.00012328,2]
[324848018,1714371085507,-500.0,0.00012328,2]
[324848019,1714371085522,-1503.92,0.00012328,2]
[324848020,1714371085531,-568.28,0.00012328,2]
[324848021,1714371085541,-521.83,0.00012328,2]
[324848022,1714371085551,-500.0,0.00012328,2]
[324848023,1714371085560,-500.0,0.00012328,2]
[324848024,1714371085570,-500.0,0.00012328,2]
[324848025,1714371085579,-176.95,0.00012328,2]
[324848026,1714371085589,-151.0,0.00012328,2]
[324848027,1714371085600,-896.44,0.00012328,2]
[324848028,1714371085610,-797.46,0.00012328,2]
[324848029,1714371085620,-500.0,0.00012328,2]
[324848030,1714371085629,-500.0,0.00012328,2]
[324848031,1714371085639,-500.0,0.00012328,2]
[324848032,1714371085649,-745.77,0.00012328,2]
[324848033,1714371085658,-556.94,0.00012328,2]
[324848034,1714371085667,-500.0,0.00012328,2]
[324848035,1714371085676,-8025.3,0.00012328,2]
[324848036,1714371085686,-500.0,0.00012328,2]
[324848037,1714371085696,-8601.13,0.00012328,2]
[324848038,1714371085705,-500.0,0.00012328,2]
[324848039,1714371085714,-500.0,0.00012328,2]
[324848040,1714371085723,-717.05,0.00012328,2]
[324848041,1714371085732,-500.0,0.00012328,2]
[324848042,1714371085741,-500.0,0.00012328,2]
[324848043,1714371085751,-6540.69978067,0.00012329,2]
[324848044,1714371085760,-525.0,0.00012329,2]
[324848045,1714371085770,-394.24,0.00012376,2]
[324848046,1714371085779,-500.0,0.00012401,2]
[324848047,1714371085788,-871.098,0.00012404,2]
[324848048,1714371085798,-150.0,0.0001241,3]
[324848049,1714371085807,-178.01,0.00012422,2]
[324848050,1714371085815,-168.70521326,0.000125,2]
[324848051,1714371085825,-3970.83515453,0.00012597,2]
[324848052,1714371085834,-1609.11132883,0.00012598,2]
[324848053,1714371085843,-500.0,0.00012598,2]
[324848054,1714371085852,-500.0,0.00012598,2]
[324848055,1714371085861,-500.0,0.00012598,2]
[324848056,1714371085871,-500.0,0.00012599,2]
[324848057,1714371085880,-500.0,0.00012599,2]
[324848058,1714371085889,-500.80121004,0.00012599,2]
[324848059,1714371085898,-504.96452374,0.00012599,2]
[324848060,1714371085908,-507.85597268,0.00012599,2]
[324848061,1714371085918,-499.78745882,0.00012599,2]
[324848062,1714371085929,-500.66637872,0.00012599,2]
[324848063,1714371085938,-501.06514662,0.00012599,2]
[324848064,1714371085947,-501.33222727,0.00012599,2]
[324848065,1714371085957,-501.01745197,0.00012599,2]
[324848066,1714371085967,-501.62932806,0.00012599,2]
[324848067,1714371085977,-502.22133947,0.00012599,2]
[324848068,1714371085986,-505.86012488,0.00012599,2]
[324848069,1714371085997,-500.0,0.00012599,2]
[324848070,1714371086006,-500.7977955,0.00012599,2]
[324848071,1714371086016,-500.70077557,0.00012599,2]
[324848072,1714371086025,-500.79982628,0.00012599,2]
[324848073,1714371086035,-501.1521803,0.00012599,2]
[324848074,1714371086043,-500.65148502,0.00012599,2]
[324848075,1714371086053,-500.53261672,0.00012599,2]
[324848076,1714371086061,-501.06552927,0.00012599,2]
[324848077,1714371086071,-166.52534797,0.00012599,2]
[324848078,1714371086079,-490.42007382,0.00012599,2]
[324848079,1714371086088,-310.73667194,0.00012599,2]
[324848080,1714371086097,-501.81186158,0.00012599,2]
[324848081,1714371086107,-500.0,0.00012599,2]
[324848082,1714371086116,-502.71918207,0.00012599,2]
[324848083,1714371086125,-406.46393301,0.00012599,2]
[324848084,1714371086134,-501.2287238,0.00012599,2]
[324848085,1714371086143,-501.66487424,0.00012599,2]
[324848086,1714371086152,-503.62754294,0.00012599,2]
[324848087,1714371086161,-171.74174307,0.00012599,2]
[324848088,1714371086171,-503.69482885,0.00012599,2]
[324848089,1714371086180,-500.0,0.00012599,2]
[324848090,1714371086189,-507.16592089,0.00012599,2]
[324848091,1714371086198,-500.0,0.00012599,2]
[324848092,1714371086207,-500.0,0.00012599,2]
[324848093,1714371086217,-623.57462913,0.00012599,2]
[324848094,1714371086228,-500.0,0.00012599,2]
[324848095,1714371086238,-287.08177053,0.00012599,2]
[324848096,1714371086248,-500.97001872,0.00012599,2]
[324848097,1714371086257,-500.0,0.00012599,2]
[324848098,1714371086266,-500.33262792,0.00012599,2]
[324848099,1714371086276,-500.71586581,0.00012599,2]
[324848100,1714371086285,-500.62527035,0.00012599,2]
[324848101,1714371086294,-500.0,0.00012599,2]
[324848102,1714371086303,-151.0,0.00012599,2]
[324848103,1714371086313,-500.0,0.00012602,2]
[324848104,1714371086322,-528.37,0.00012602,2]
[324848105,1714371086331,-500.0,0.00012602,2]
[324848106,1714371086340,-500.0,0.00012602,2]
[324848107,1714371086349,-940.68,0.00012602,2]
[324848108,1714371086359,-500.0,0.00012602,2]
[324848109,1714371086368,-500.0,0.00012602,2]
[324848110,1714371086377,-500.0,0.00012602,2]
[324848111,1714371086386,-500.0,0.00012602,2]
[324848112,1714371086396,-500.0,0.00012602,2]
[324848113,1714371086405,-500.0,0.00012602,2]
[324848114,1714371086414,-500.0,0.00012602,2]
[324848115,1714371086423,-500.0,0.00012602,2]
[324848116,1714371086432,-500.0,0.00012602,2]
[324848117,1714371086441,-341.24,0.00012602,2]
[324848118,1714371086451,-500.0,0.00012602,2]
[324848119,1714371086460,-308.96,0.00012602,2]
[324848120,1714371086470,-500.0,0.00012602,2]
[324848121,1714371086479,-265.33,0.00012602,2]
[324848122,1714371086488,-500.0,0.00012602,2]
[324848123,1714371086498,-500.0,0.00012602,2]
[324848124,1714371086507,-500.0,0.00012602,2]
[324848125,1714371086517,-500.0,0.00012602,2]
[324848126,1714371086529,-500.0,0.00012602,2]
[324848127,1714371086538,-500.0,0.00012602,2]
[324848128,1714371086548,-500.0,0.00012602,2]
[324848129,1714371086557,-500.0,0.00012602,2]
[324848130,1714371086568,-500.0,0.00012602,2]
[324848131,1714371086577,-500.0,0.00012602,2]
[324848132,1714371086587,-1988.89,0.00012602,2]
[324848133,1714371086596,-500.0,0.00012602,2]
[324848134,1714371086607,-500.0,0.00012602,2]
[324848135,1714371086617,-500.0,0.00012602,2]
[324848136,1714371086627,-500.0,0.00012602,2]
[324848137,1714371086636,-500.0,0.00012602,2]
[324848138,1714371086645,-500.0,0.00012602,2]
[324848139,1714371086655,-500.0,0.00012602,2]
[324848140,1714371086663,-833.96,0.00012602,2]
[324848141,1714371086672,-500.0,0.00012602,2]
[324848142,1714371086682,-172.76,0.00012602,2]
[324848143,1714371086691,-500.0,0.00012602,2]
[324848144,1714371086700,-500.0,0.00012602,2]
[324848145,1714371086709,-500.0,0.00012602,2]
[324848146,1714371086718,-151.0,0.00012602,2]
[324848147,1714371086727,-500.0,0.00012602,2]
[324848148,1714371086737,-500.0,0.00012602,2]
[324848149,1714371086746,-500.0,0.00012602,2]
[324848150,1714371086755,-500.0,0.00012602,2]
[324848151,1714371086764,-500.0,0.00012602,2]
[324848152,1714371086774,-500.0,0.00012602,2]
[324848153,1714371086784,-500.0,0.00012602,2]
[324848154,1714371086793,-500.0,0.00012602,2]
[324848155,1714371086802,-175.644757,0.00012602,2]
[324848156,1714371086812,-175.644757,0.00012602,2]
[324848157,1714371086821,-728.48,0.00012602,2]
[324848158,1714371086830,-500.0,0.00012602,2]
[324848159,1714371086840,-500.0,0.00012602,2]
[324848160,1714371086849,-500.0,0.00012602,2]
[324848161,1714371086858,-500.0,0.00012602,2]
[324848162,1714371086867,-151.0,0.00012602,2]
[324848163,1714371086876,-1867.75,0.00012602,2]
[324848164,1714371086885,-500.0,0.00012602,2]
[324848165,1714371086894,-500.0,0.00012602,2]
[324848166,1714371086903,-500.0,0.00012602,2]
[324848167,1714371086912,-150.0,0.00012602,2]
[324848168,1714371086921,-500.0,0.00012602,2]
[324848169,1714371086932,-500.0,0.00012602,2]
[324848170,1714371086942,-522.45,0.00012602,2]
[324848171,1714371086951,-500.0,0.00012602,2]
[324848172,1714371086960,-455.62,0.00012602,2]
[324848173,1714371086970,-631.94,0.00012602,2]
[324848174,1714371086979,-500.0,0.00012602,2]
[324848175,1714371086988,-840.69,0.00012602,2]
[324848176,1714371086997,-500.0,0.00012602,2]
[324848177,1714371087006,-500.0,0.00012602,2]
[324848178,1714371087016,-500.0,0.00012602,2]
[324848179,1714371087025,-151.596133,0.00012602,2]
[324848180,1714371087035,-500.0,0.00012602,2]
[324848181,1714371087044,-500.0,0.00012602,2]
[324848182,1714371087053,-500.0,0.00012602,2]
[324848183,1714371087062,-500.0,0.00012602,2]
[324848184,1714371087071,-642.66,0.00012602,2]
[324848185,1714371087080,-500.0,0.00012602,2]
[324848186,1714371087089,-151.0,0.00012602,2]
[324848187,1714371087098,-500.0,0.00012602,2]
[324848188,1714371087108,-500.0,0.00012602,2]
[324848189,1714371087117,-500.0,0.00012602,2]
[324848190,1714371087127,-500.0,0.00012602,2]
[324848191,1714371087136,-500.0,0.00012602,2]
[324848192,1714371087145,-500.0,0.00012602,2]
[324848193,1714371087155,-277.04,0.00012602,2]
[324848194,1714371087165,-500.0,0.00012602,2]
[324848195,1714371087174,-500.0,0.00012602,2]
[324848196,1714371087184,-500.0,0.00012602,2]
[324848197,1714371087193,-383.26,0.00012602,2]
[324848198,1714371087203,-500.0,0.00012602,2]
[324848199,1714371087212,-1718.9,0.00012602,2]
[324848200,1714371087221,-500.0,0.00012602,2]
[324848201,1714371087231,-500.0,0.00012602,2]
[324848202,1714371087240,-567.22,0.00012602,2]
[324848203,1714371087250,-756.51,0.00012602,2]
[324848204,1714371087259,-500.0,0.00012602,2]
[324848205,1714371087271,-500.0,0.00012602,2]
[324848206,1714371087280,-744.31,0.00012602,2]
[324848207,1714371087290,-500.0,0.00012602,2]
[324848208,1714371087300,-152.645666,0.00012602,2]
[324848209,1714371087309,-500.0,0.00012602,2]
[324848210,1714371087319,-152.645666,0.00012602,2]
[324848211,1714371087328,-2861.36,0.00012602,2]
[324848212,1714371087337,-817.41,0.00012602,2]
[324848213,1714371087346,-500.0,0.00012602,2]
[324848214,1714371087356,-500.0,0.00012602,2]
[324848215,1714371087366,-500.0,0.00012602,2]
[324848216,1714371087376,-531.59,0.00012602,2]
[324848217,1714371087386,-151.0,0.00012602,2]
[324848218,1714371087395,-500.0,0.00012602,2]
[324848219,1714371087405,-1487.12,0.00012602,2]
[324848220,1714371087415,-500.0,0.00012602,2]
[324848221,1714371087424,-500.0,0.00012602,2]
[324848222,1714371087434,-500.0,0.00012602,2]
[324848223,1714371087444,-500.0,0.00012602,2]
[324848224,1714371087454,-500.0,0.00012602,2]
[324848225,1714371087463,-215.507729,0.00012602,2]
[324848226,1714371087473,-500.0,0.00012602,2]
[324848227,1714371087482,-500.0,0.00012602,2]
[324848228,1714371087492,-500.0,0.00012602,2]
[324848229,1714371087501,-343.861261,0.00012602,2]
[324848230,1714371087510,-343.861261,0.00012602,2]
[324848231,1714371087525,-4424.23,0.00012602,2]
[324848232,1714371087539,-500.0,0.00012602,2]
[324848233,1714371087549,-500.0,0.00012602,2]
[324848234,1714371087559,-500.0,0.00012602,2]
[324848235,1714371087569,-500.0,0.00012602,2]
[324848236,1714371087579,-500.0,0.00012602,2]
[324848237,1714371087588,-1134.69,0.00012602,2]
[324848238,1714371087598,-658.49,0.00012602,2]
[324848239,1714371087608,-500.0,0.00012602,2]
[324848240,1714371087618,-500.0,0.00012602,2]
[324848241,1714371087627,-500.0,0.00012602,2]
[324848242,1714371087637,-500.0,0.00012602,2]
[324848243,1714371087646,-500.0,0.00012602,2]
[324848244,1714371087656,-500.0,0.00012602,2]
[324848245,1714371087665,-500.0,0.00012602,2]
[324848246,1714371087675,-500.0,0.00012602,2]
[324848247,1714371087685,-500.0,0.00012602,2]
[324848248,1714371087694,-516.92,0.00012602,2]
[324848249,1714371087704,-550.41002625,0.00012602,2]
[324848250,1714371087715,-691.55,0.00012602,2]
[324848251,1714371087724,-699.22,0.00012602,2]
[324848252,1714371087733,-573.92,0.00012602,2]
[324848253,1714371087743,-1012.47,0.00012602,2]
[324848254,1714371087753,-500.0,0.00012602,2]
[324848255,1714371087762,-792.24,0.00012602,2]
[324848256,1714371087772,-500.0,0.00012602,2]
[324848257,1714371087782,-1418.19,0.00012602,2]
[324848258,1714371087791,-575.7,0.00012602,2]
[324848259,1714371087800,-500.0,0.00012602,2]
[324848260,1714371087809,-500.0,0.00012602,2]
[324848261,1714371087819,-500.0,0.00012602,2]
[324848262,1714371087828,-514.72,0.00012602,2]
[324848263,1714371087838,-500.0,0.00012602,2]
[324848264,1714371087847,-510.34,0.00012602,2]
[324848265,1714371088000,-1298.47,0.00012602,2]
[324848266,1714371088010,-500.0,0.00012602,2]
[324848267,1714371088020,-500.0,0.00012602,2]
[324848268,1714371088030,-500.0,0.00012602,2]
[324848269,1714371088040,-500.0,0.00012602,2]
[324848270,1714371088049,-500.0,0.00012602,2]
[324848271,1714371088059,-500.0,0.00012602,2]
[324848272,1714371088068,-619.47339382,0.00012602,2]
[324848273,1714371088078,-500.0,0.00012602,2]
[324848274,1714371088089,-579.92424445,0.00012602,2]
[324848275,1714371088098,-500.0,0.00012602,2]
[324848276,1714371088108,-615.5,0.00012602,2]
[324848277,1714371088117,-500.0,0.00012602,2]
[324848278,1714371088128,-209.94,0.00012602,2]
[324848279,1714371088138,-500.0,0.00012602,2]
[324848280,1714371088148,-500.0,0.00012602,2]
[324848281,1714371088158,-500.0,0.00012602,2]
[324848282,1714371088168,-1601.85,0.00012602,2]
[324848283,1714371088178,-500.0,0.00012602,2]
[324848284,1714371088188,-1690.59,0.00012602,2]
[324848285,1714371088198,-500.0,0.00012602,2]
[324848286,1714371088207,-500.0,0.00012602,2]
[324848287,1714371088217,-500.0,0.00012602,2]
[324848288,1714371088227,-863.9,0.00012602,2]
[324848289,1714371088237,-500.0,0.00012602,2]
[324848290,1714371088246,-181.57,0.00012602,2]
[324848291,1714371088256,-500.0,0.00012602,2]
[324848292,1714371088265,-500.0,0.00012602,2]
[324848293,1714371088275,-11360.7,0.00012602,2]
[324848294,1714371088284,-500.0,0.00012602,2]
[324848295,1714371088294,-1127.78,0.00012602,2]
[324848296,1714371088303,-500.0,0.00012602,2]
[324848297,1714371088312,-500.0,0.00012602,2]
[324848298,1714371088322,-500.0,0.00012602,2]
[324848299,1714371088332,-500.0,0.00012602,2]
[324848300,1714371088342,-500.0,0.00012602,2]
[324848301,1714371088352,-500.0,0.00012602,2]
[324848302,1714371088361,-1456.63,0.00012602,2]
[324848303,1714371088371,-500.0,0.00012602,2]
[324848304,1714371088380,-4753.02,0.00012602,2]
[324848305,1714371088389,-913.05,0.00012602,2]
[324848306,1714371088399,-500.0,0.00012602,2]
[324848307,1714371088409,-1411.2,0.00012602,2]
[324848308,1714371088419,-1902.6,0.00012602,2]
[324848309,1714371088428,-1350.66,0.00012602,2]
[324848310,1714371088438,-1028.48,0.00012602,2]
[324848311,1714371088448,-507.64,0.00012602,2]
[324848312,1714371088458,-500.0,0.00012602,2]
[324848313,1714371088468,-2440.89,0.00012602,2]
[324848314,1714371088477,-514.71,0.00012602,2]
[324848315,1714371088487,-984.03,0.00012602,2]
[324848316,1714371088497,-500.0,0.00012602,2]
[324848317,1714371088507,-500.0,0.00012602,2]
[324848318,1714371088520,-500.0,0.00012602,2]
[324848319,1714371088530,-500.0,0.00012602,2]
[324848320,1714371088539,-1503.92,0.00012602,2]
[324848321,1714371088548,-568.28,0.00012602,2]
[324848322,1714371088558,-317.99105685,0.00012602,2]
[324848323,1714371088568,-500.0,0.00012602,2]
[324848324,1714371088577,-896.44,0.00012602,2]
[324848325,1714371088587,-797.46,0.00012602,2]
[324848326,1714371088596,-500.0,0.00012602,2]
[324848327,1714371088607,-745.77,0.00012602,2]
[324848328,1714371088616,-597.93,0.00012602,2]
[324848329,1714371088626,-8025.3,0.00012602,2]
[324848330,1714371088635,-500.0,0.00012602,2]
[324848331,1714371088645,-8601.13,0.00012602,2]
[324848332,1714371088654,-500.0,0.00012602,2]
[324848333,1714371088663,-500.0,0.00012602,2]
[324848334,1714371088673,-717.05,0.00012602,2]
[324848335,1714371088682,-500.0,0.00012602,2]
[324848336,1714371088692,-289.77080082,0.00012602,2]
[324848337,1714371088702,-688.27,0.00012617,2]
[324848338,1714371088711,-198.0,0.00012676,2]
[324848339,1714371088720,-860.95043983,0.0001268,2]
[324848340,1714371088730,-150.0,0.00012686,2]
[324848341,1714371088740,-500.0,0.00012698,2]
[324848342,1714371088749,-492.0,0.00012698,2]
[324848343,1714371088759,-500.0,0.00012699,2]
[324848344,1714371088770,-500.0,0.00012699,2]
[324848345,1714371088779,-243.93019072,0.000127,2]
[324848346,1714371088788,-10000.0,0.000127,2]
[324848347,1714371088797,-173421.29811665,0.000127,2]
[324848348,1714371088807,-259.650878,0.000127,2]
[324848349,1714371088816,-155.095441,0.000127,2]
[324848350,1714371088825,-12000.0,0.000127,2]
[324848351,1714371088834,-151.0,0.000127,2]
[324848352,1714371088844,-211.137646,0.000127,2]
[324848353,1714371088853,-211.137646,0.000127,2]
[324848354,1714371088863,-151.0,0.000127,2]
[324848355,1714371088872,-151.0,0.000127,2]
[324848356,1714371088881,-233.251933,0.000127,2]
[324848357,1714371088891,-233.251933,0.000127,2]
[324848358,1714371088900,-151.0,0.000127,2]
[324848359,1714371088909,-288.557381,0.000127,2]
[324848360,1714371088918,-151.0,0.000127,2]
[324848361,1714371088928,-151.0,0.000127,2]
[324848362,1714371088937,-1000.0,0.000127,2]
[324848363,1714371088946,-151.0,0.000127,2]
[324848364,1714371088955,-150.0,0.00012702,2]
[324848365,1714371088965,-150.0,0.00012702,2]
[324848366,1714371088974,-150.0,0.00012711,2]
[324848367,1714371088983,-150.0,0.00012713,2]
[324848368,1714371088992,-1500.0,0.00012718,2]
[324848369,1714371089001,-150.0,0.00012722,2]
[324848370,1714371089010,-150.0,0.00012723,2]
[324848371,1714371089021,-150.0,0.00012723,2]
[324848372,1714371089030,-150.0,0.00012724,2]
[324848373,1714371089039,-150.0,0.00012725,2]
[324848374,1714371089048,-300.78251717,0.00012729,2]
[324848375,1714371089058,-150.0,0.00012729,2]
[324848376,1714371089067,-150.0,0.00012731,2]
[324848377,1714371089076,-150.0,0.00012733,2]
[324848378,1714371089084,-1500.0,0.00012733,2]
[324848379,1714371089094,-150.0,0.00012733,2]
[324848380,1714371089102,-150.0,0.00012734,2]
[324848381,1714371089111,-150.0,0.00012734,2]
[324848382,1714371089120,-150.0,0.00012735,2]
[324848383,1714371089129,-159.56743062,0.00012737,2]
[324848384,1714371089138,-1023.6529107,0.0001274,2]
[324848385,1714371089147,-150.0,0.00012744,2]
[324848386,1714371089156,-150.0,0.00012747,2]
[324848387,1714371089165,-150.0,0.00012751,2]
[324848388,1714371089175,-150.0,0.00012751,2]
[324848389,1714371089184,-150.0,0.00012751,2]
[324848390,1714371089193,-150.0,0.00012752,2]
[324848391,1714371089202,-860.95043983,0.00012753,2]
[324848392,1714371089211,-150.0,0.00012757,2]
[324848393,1714371089219,-150.0,0.0001276,2]
[324848394,1714371089228,-150.0,0.00012761,2]
[324848395,1714371089237,-150.0,0.00012761,2]
[324848396,1714371089246,-300.0,0.00012762,2]
[324848397,1714371089256,-150.0,0.00012762,2]
[324848398,1714371089265,-150.0,0.00012763,2]
[324848399,1714371089275,-150.0,0.00012766,2]
[324848400,1714371089284,-150.0,0.0001277,2]
[324848401,1714371089293,-150.0,0.00012772,2]
[324848402,1714371089303,-1500.0,0.00012772,2]
[324848403,1714371089312,-150.0,0.00012773,2]
[324848404,1714371089321,-150.0,0.00012773,2]
[324848405,1714371089330,-266.72769695,0.00012776,2]
[324848406,1714371089340,-150.0,0.00012781,2]
[324848407,1714371089349,-150.0,0.00012781,2]
[324848408,1714371089358,-150.0,0.00012783,2]
[324848409,1714371089368,-300.0,0.00012787,2]
[324848410,1714371089377,-300.0,0.00012787,2]
[324848411,1714371089387,-150.0,0.00012791,2]
[324848412,1714371089395,-150.0,0.00012795,2]
[324848413,1714371089404,-150.0,0.00012796,2]
[324848414,1714371089414,-150.0,0.00012796,2]
[324848415,1714371089423,-300.0,0.00012797,2]
[324848416,1714371089432,-150.0,0.00012797,2]
[324848417,1714371089441,-150.0,0.00012797,2]
[324848418,1714371089450,-150.0,0.00012797,2]
[324848419,1714371089460,-500.0,0.00012799,2]
[324848420,1714371089470,-500.0,0.00012799,2]
[324848421,1714371089479,-112393.95201246,0.000128,2]
[324848422,1714371089896,-93427.97746415,0.000128,2]
[324848423,1714371089906,-151.0,0.000128,2]
[324848424,1714371089915,-152.645666,0.000128,2]
[324848425,1714371089924,-152.645666,0.000128,2]
[324848426,1714371089933,-151.0,0.000128,2]
[324848427,1714371089942,-343.861261,0.000128,2]
[324848428,1714371089951,-343.861261,0.000128,2]
[324848429,1714371089959,-287.04525791,0.00012801,2]
[324848430,1714371089968,-150.0,0.00012803,2]
[324848431,1714371089977,-150.0,0.00012806,2]
[324848432,1714371089987,-150.0,0.00012808,2]
[324848433,1714371089995,-150.0,0.00012809,2]
[324848434,1714371090004,-150.0,0.00012812,2]
[324848435,1714371090013,-300.0,0.00012814,2]
[324848436,1714371090023,-150.0,0.00012815,2]
[324848437,1714371090032,-1500.0,0.00012816,2]
[324848438,1714371090041,-1500.0,0.00012819,2]
[324848439,1714371090050,-150.0,0.00012819,2]
[324848440,1714371090059,-150.0,0.00012822,2]
[324848441,1714371090068,-860.95043983,0.00012827,2]
[324848442,1714371090078,-150.0,0.00012829,2]
[324848443,1714371090087,-150.0,0.00012836,2]
[324848444,1714371090096,-150.0,0.00012837,2]
[324848445,1714371090105,-150.0,0.00012839,2]
[324848446,1714371090114,-150.0,0.00012847,2]
[324848447,1714371090123,-150.0,0.00012851,2]
[324848448,1714371090132,-150.0,0.00012852,2]
[324848449,1714371090141,-150.0,0.00012857,2]
[324848450,1714371090150,-150.0,0.00012861,2]
[324848451,1714371090159,-300.0,0.00012866,2]
[324848452,1714371090168,-1500.0,0.00012868,2]
[324848453,1714371090177,-169.91382913,0.00012869,2]
[324848454,1714371090186,-1500.0,0.00012869,2]
[324848455,1714371090196,-1994.86966475,0.0001287,2]
[324848456,1714371090205,-514.6479241,0.0001287,2]
[324848457,1714371090214,-12000.0,0.0001287,2]
[324848458,1714371090223,-291.139574,0.0001287,2]
[324848459,1714371090231,-175.644757,0.0001287,2]
[324848460,1714371090241,-175.644757,0.0001287,2]
[324848461,1714371090250,-151.0,0.0001287,2]
[324848462,1714371090260,-150.0,0.00012871,2]
[324848463,1714371090270,-150.0,0.00012872,2]
[324848464,1714371090279,-500.0,0.00012873,2]
[324848465,1714371090287,-500.0,0.00012873,2]
[324848466,1714371090296,-500.85632326,0.00012873,2]
[324848467,1714371090305,-300.0,0.00012875,2]
[324848468,1714371090314,-1500.0,0.00012875,2]
[324848469,1714371090324,-150.0,0.00012875,2]
[324848470,1714371090333,-500.0,0.00012875,2]
[324848471,1714371090343,-150.0,0.00012875,2]
[324848472,1714371090352,-330.03,0.00012875,2]
[324848473,1714371090361,-500.0,0.00012876,2]
[324848474,1714371090370,-500.0,0.00012876,2]
[324848475,1714371090379,-559.32,0.00012876,2]
[324848476,1714371090389,-940.68,0.00012876,2]
[324848477,1714371090398,-500.0,0.00012876,2]
[324848478,1714371090407,-373.63,0.00012876,2]
[324848479,1714371090416,-593.98,0.00012876,2]
[324848480,1714371090426,-500.0,0.00012876,2]
[324848481,1714371090435,-302.46,0.00012876,2]
[324848482,1714371090445,-500.0,0.00012876,2]
[324848483,1714371090455,-500.0,0.00012876,2]
[324848484,1714371090464,-500.0,0.00012876,2]
[324848485,1714371090473,-505.3,0.00012876,2]
[324848486,1714371090482,-500.0,0.00012876,2]
[324848487,1714371090492,-257.07613317,0.00012876,2]
[324848488,1714371090501,-500.0,0.00012876,2]
[324848489,1714371090510,-500.0,0.00012876,2]
[324848490,1714371090526,-329.71,0.00012876,2]
[324848491,1714371090535,-500.0,0.00012876,2]
[324848492,1714371090544,-500.0,0.00012876,2]
[324848493,1714371090553,-500.0,0.00012876,2]
[324848494,1714371090564,-500.0,0.00012876,2]
[324848495,1714371090574,-1988.89,0.00012876,2]
[324848496,1714371090583,-500.0,0.00012876,2]
[324848497,1714371090593,-276.41,0.00012876,2]
[324848498,1714371090602,-500.0,0.00012876,2]
[324848499,1714371090612,-500.0,0.00012876,2]
[324848500,1714371090621,-500.0,0.00012876,2]
[324848501,1714371090631,-500.0,0.00012876,2]
[324848502,1714371090640,-500.0,0.00012876,2]
[324848503,1714371090649,-833.96,0.00012876,2]
[324848504,1714371090658,-500.0,0.00012876,2]
[324848505,1714371090667,-500.0,0.00012876,2]
[324848506,1714371090676,-500.0,0.00012876,2]
[324848507,1714371090685,-500.0,0.00012876,2]
[324848508,1714371090694,-500.0,0.00012876,2]
[324848509,1714371090705,-500.0,0.00012876,2]
[324848510,1714371090715,-513.94,0.00012876,2]